bitfinex/quotes_BTCUSD_20240901
["timestamp","ask_amount","ask_price","bid_price","bid_amount"]
[1725234435860,1.52251883,57531.0,57530.0,0.0008987]
[1725234436048,1.23292819,57531.0,57530.0,0.0008987]
[1725234436269,1.33559419,57531.0,57530.0,0.0008987]
[1725234436699,1.34459419,57531.0,57530.0,0.0008987]
[1725234436924,1.21392819,57531.0,57530.0,0.0008987]
[1725234437146,0.39700544,57531.0,57530.0,0.0008987]
[1725234437585,0.63443175,57531.0,57530.0,0.0008987]
[1725234437833,0.46061275,57531.0,57530.0,0.0008987]
[1725234438294,0.63443175,57531.0,57530.0,0.0008987]
[1725234438517,0.46061275,57531.0,57530.0,0.0008987]
[1725234438734,0.54077806,57531.0,57530.0,0.0008987]
[1725234439212,0.71459706,57531.0,57530.0,0.0008987]
[1725234439439,0.37370375,57531.0,57530.0,0.0008987]
[1725234439655,0.46061275,57531.0,57530.0,0.0008987]
[1725234439866,0.63443175,57531.0,57530.0,0.0008987]
[1725234441059,0.009,57531.0,57530.0,0.4467097]
[1725234441286,0.009,57531.0,57530.0,0.7943537]
[1725234441528,0.009,57531.0,57530.0,0.9681757]
[1725234441767,0.086889,57545.0,57540.0,0.086895]
[1725234442068,0.086886,57547.0,57541.0,0.1577]
[1725234442266,0.086887,57546.0,57541.0,0.1487]
[1725234443249,0.007,57545.0,57541.0,0.1487]
[1725234444441,0.086879,57552.0,57544.0,0.17378]
[1725234444679,0.086879,57552.0,57545.0,0.289687]
[1725234444901,0.086879,57552.0,57545.0,0.2028]
[1725234444902,0.002,57546.0,57545.0,0.2028]
[1725234445862,0.086886,57547.0,57545.0,0.2028]
[1725234446326,0.000818,57546.0,57545.0,0.2028]
[1725234447511,0.000818,57546.0,57544.0,0.001]
[1725234447735,0.000818,57546.0,57541.0,0.1487]
[1725234447736,0.08689,57544.0,57541.0,0.3589]
[1725234449559,0.001,57544.0,57541.0,0.3679]
[1725234450254,0.001,57544.0,57541.0,0.628579]
[1725234450477,0.001,57544.0,57541.0,0.541686]
[1725234450736,0.000818,57546.0,57542.0,0.086892]
[1725234451202,0.001,57544.0,57542.0,0.086892]
[1725234451636,0.000818,57546.0,57542.0,0.086892]
[1725234451853,0.001,57544.0,57542.0,0.086892]
[1725234452287,0.086888,57545.0,57541.0,0.3589]
[1725234452722,0.001,57544.0,57542.0,0.008]
[1725234453158,0.001,57544.0,57542.0,0.094891]
[1725234453389,0.001,57544.0,57543.0,0.086891]
[1725234453850,0.000818,57546.0,57543.0,0.086891]
[1725234454291,0.001,57545.0,57543.0,0.086891]
[1725234454755,0.000818,57546.0,57543.0,0.086891]
[1725234454977,0.001818,57546.0,57543.0,0.092891]
[1725234455474,0.001818,57546.0,57543.0,0.086891]
[1725234455726,0.000818,57546.0,57543.0,0.086891]
[1725234455914,0.001,57545.0,57543.0,0.093891]
[1725234457381,0.000818,57546.0,57541.0,0.3589]
[1725234457625,0.001818,57546.0,57545.0,0.086888]
[1725234457888,0.001818,57546.0,57545.0,0.640365]
[1725234458108,0.000818,57546.0,57545.0,0.640365]
[1725234458332,0.000818,57546.0,57545.0,0.639365]
[1725234459279,0.001818,57546.0,57545.0,0.645365]
[1725234461355,0.35369365,57553.0,57545.0,0.559477]
[1725234461603,0.35369365,57553.0,57550.0,0.086879]
[1725234461863,0.35369365,57553.0,57550.0,0.08688]
[1725234461864,0.50540786,57551.0,57550.0,0.08688]
[1725234462075,0.50540786,57551.0,57527.0,0.173828]
[1725234462076,0.2053,57539.0,57527.0,0.1583]
[1725234462360,0.42296134,57531.0,57523.0,0.50540786]
[1725234462583,0.42296134,57531.0,57521.0,0.086924]
[1725234462584,0.46525747,57531.0,57521.0,0.086924]
[1725234462816,0.46525747,57531.0,57522.0,0.086923]
[1725234462817,0.47179275,57531.0,57522.0,0.086923]
[1725234463062,0.47179275,57531.0,57522.0,0.086922]
[1725234463063,0.29797375,57531.0,57522.0,0.086922]
[1725234463281,0.42949662,57531.0,57523.0,0.086921]
[1725234463843,0.02727055,57537.0,57522.0,0.173846]
[1725234463844,0.16223334,57536.0,57522.0,0.173846]
[1725234464067,0.086909,57531.0,57522.0,0.173846]
[1725234465214,0.086909,57531.0,57530.0,0.0018987]
[1725234465439,0.273807,57535.0,57530.0,0.0018987]
[1725234465440,0.086907,57533.0,57530.0,0.0018987]
[1725234465675,0.273807,57535.0,57530.0,0.0018987]
[1725234465676,0.1,57535.0,57531.0,0.086908]
[1725234465957,0.1,57535.0,57532.0,0.086906]
[1725234466182,0.16223334,57536.0,57532.0,0.086906]
[1725234467524,0.16223334,57536.0,57530.0,0.0028987]
[1725234467525,0.11454339,57535.0,57530.0,0.0028987]
[1725234467992,0.16223334,57532.0,57530.0,0.0008987]
[1725234469298,0.086909,57531.0,57530.0,0.0008987]
[1725234470424,0.260728,57531.0,57530.0,0.0008987]
[1725234471550,0.086905,57534.0,57530.0,0.0008987]
[1725234471769,0.24913534,57536.0,57530.0,0.0008987]
[1725234471978,0.001,57531.0,57530.0,0.0878087]
[1725234472425,0.24913534,57536.0,57530.0,0.0878087]
[1725234472426,0.16223334,57540.0,57530.0,0.1621987]
[1725234472649,0.16223334,57540.0,57537.0,0.0869]
[1725234472879,0.1,57541.0,57537.0,0.0849]
[1725234473098,0.086893,57542.0,57537.0,0.0849]
[1725234473536,0.086893,57542.0,57535.0,0.2076]
[1725234473537,0.1,57543.0,57540.0,0.086895]
[1725234473991,0.1,57543.0,57538.0,0.086898]
[1725234473992,0.186892,57543.0,57538.0,0.086898]
[1725234474453,0.186892,57543.0,57538.0,0.085898]
[1725234474910,0.000818,57544.0,57543.0,0.086891]
[1725234475130,0.000818,57544.0,57543.0,0.260674]
[1725234475356,0.000818,57544.0,57543.0,0.257674]
[1725234475793,0.000818,57544.0,57543.0,0.083891]
[1725234476014,0.000818,57544.0,57543.0,0.464274]
[1725234476246,0.000818,57544.0,57543.0,0.798057]
[1725234476681,0.000818,57544.0,57543.0,0.97184]
[1725234477876,0.004818,57544.0,57543.0,0.97184]
[1725234478527,0.004818,57544.0,57543.0,0.798057]
[1725234478528,0.000818,57544.0,57543.0,0.798057]
[1725234478741,0.000818,57544.0,57543.0,0.807057]
[1725234478742,0.001818,57544.0,57543.0,0.807057]
[1725234479177,0.001818,57544.0,57543.0,0.798057]
[1725234479400,0.000818,57544.0,57543.0,0.798057]
[1725234479618,0.001818,57544.0,57543.0,0.633274]
[1725234480702,0.001818,57544.0,57543.0,0.807057]
[1725234480960,0.001818,57544.0,57543.0,0.798057]
[1725234481178,0.000818,57544.0,57543.0,0.798057]
[1725234481445,0.001818,57544.0,57543.0,0.807057]
[1725234481890,0.001818,57544.0,57543.0,0.3666]
[1725234481891,0.000818,57544.0,57543.0,0.3666]
[1725234482110,0.000818,57544.0,57543.0,0.453491]
[1725234482343,0.001818,57544.0,57543.0,0.462491]
[1725234482574,0.001818,57544.0,57543.0,0.810057]
[1725234482809,0.16305134,57544.0,57533.0,0.3902]
[1725234483030,0.086899,57539.0,57534.0,0.086904]
[1725234483266,0.086896,57540.0,57535.0,0.086903]
[1725234483718,0.16223334,57539.0,57533.0,0.1747]
[1725234483941,0.16223334,57539.0,57532.0,0.0008998]
[1725234483942,0.086905,57535.0,57532.0,0.0008998]
[1725234484161,0.086905,57534.0,57532.0,0.0008998]
[1725234484860,0.086899,57538.0,57532.0,0.0008998]
[1725234485559,0.086899,57538.0,57533.0,0.086906]
[1725234485560,0.001,57534.0,57533.0,0.086906]
[1725234487014,0.086899,57538.0,57533.0,0.086906]
[1725234487486,0.087899,57538.0,57533.0,0.086906]
[1725234487937,0.086899,57538.0,57533.0,0.086906]
[1725234488176,0.001,57534.0,57533.0,0.093906]
[1725234488590,0.086897,57539.0,57534.0,0.086905]
[1725234489111,0.001,57538.0,57534.0,0.086905]
[1725234490414,0.086897,57539.0,57534.0,0.086905]
[1725234490643,0.000818,57544.0,57543.0,0.086891]
[1725234490861,0.000818,57544.0,57543.0,0.466791]
[1725234491082,0.000818,57544.0,57543.0,0.814357]
[1725234491314,0.000818,57544.0,57543.0,0.98814]
[1725234491535,0.000818,57544.0,57543.0,0.98714]
[1725234491987,0.000818,57544.0,57543.0,0.813357]
[1725234493630,0.001818,57544.0,57543.0,0.821357]
[1725234496085,0.001818,57544.0,57543.0,0.8222568]
[1725234496523,0.1430558,57556.0,57543.0,0.5625828]
[1725234496793,0.17375,57554.0,57546.0,0.086886]
[1725234497003,0.086882,57549.0,57544.0,0.086889]
[1725234497225,0.08689,57544.0,57543.0,0.0088998]
[1725234497443,0.08689,57544.0,57543.0,0.0008998]
[1725234497880,0.086886,57547.0,57543.0,0.0008998]
[1725234498341,0.007,57561.0,57543.0,0.0008998]
[1725234498342,0.33797834,57556.0,57543.0,0.0008998]
[1725234498557,0.086878,57552.0,57546.0,0.086886]
[1725234498772,0.086878,57552.0,57547.0,0.1225]
[1725234499214,0.086878,57552.0,57547.0,0.209384]
[1725234499708,0.086876,57553.0,57548.0,0.086883]
[1725234499931,0.2821,57560.0,57553.0,0.086876]
[1725234499932,0.33596734,57560.0,57553.0,0.086876]
[1725234500168,0.33596734,57560.0,57547.0,0.1225]
[1725234500169,0.086871,57557.0,57551.0,0.085878]
[1725234500413,0.086871,57557.0,57552.0,0.086877]
[1725234500639,0.086872,57556.0,57550.0,0.08688]
[1725234501037,0.086873,57555.0,57550.0,0.08688]
[1725234501887,0.002,57556.0,57550.0,0.08688]
[1725234502105,0.002,57556.0,57544.0,0.333079]
[1725234502106,0.16223334,57551.0,57544.0,0.1593]
[1725234502335,0.17577468,57554.0,57543.0,0.0008998]
[1725234502336,0.16223334,57545.0,57543.0,0.0008998]
[1725234502563,0.88933,57544.0,57543.0,0.0008998]
[1725234502790,1.42153495,57544.0,57543.0,0.0008998]
[1725234503244,1.59008659,57544.0,57543.0,0.0008998]
[1725234503477,1.14666695,57544.0,57543.0,0.0008998]
[1725234503695,1.52377705,57544.0,57543.0,0.0008998]
[1725234503911,1.0318876,57544.0,57543.0,0.0008998]
[1725234504125,0.99233,57544.0,57543.0,0.0008998]
[1725234504887,0.98933,57544.0,57543.0,0.0008998]
[1725234505090,0.99233,57544.0,57543.0,0.0008998]
[1725234506233,0.36367,57544.0,57543.0,0.0008998]
[1725234506654,0.53745,57544.0,57543.0,0.0008998]
[1725234507103,0.53445,57544.0,57543.0,0.0008998]
[1725234507328,0.53745,57544.0,57543.0,0.0008998]
[1725234507586,0.26367,57544.0,57543.0,0.0008998]
[1725234507798,0.08689,57544.0,57543.0,0.0008998]
[1725234508354,0.08789,57544.0,57543.0,0.0008998]
[1725234508591,0.08689,57544.0,57543.0,0.0008998]
[1725234510012,0.08689,57544.0,57543.0,0.0038998]
[1725234511480,0.08689,57544.0,57543.0,0.0008998]
[1725234511706,0.15201154,57550.0,57543.0,0.1611998]
[1725234511707,0.273764,57550.0,57543.0,0.1611998]
[1725234511925,0.05201154,57551.0,57543.0,0.1611998]
[1725234511926,0.086885,57547.0,57543.0,0.1611998]
[1725234513541,0.001,57544.0,57543.0,0.0008998]
[1725234513772,0.26167,57544.0,57543.0,0.0008998]
[1725234514222,0.26067,57544.0,57543.0,0.0008998]
[1725234515391,0.26067,57544.0,57543.0,0.0038998]
[1725234516490,0.26067,57544.0,57543.0,0.0008998]
[1725234516706,0.25567,57544.0,57543.0,0.0008998]
[1725234516918,0.25867,57544.0,57543.0,0.0008998]
[1725234517352,0.25567,57544.0,57543.0,0.0008998]
[1725234517596,0.25767,57544.0,57543.0,0.0008998]
[1725234518060,0.43145,57544.0,57543.0,0.0008998]
[1725234518281,0.42945,57544.0,57543.0,0.0008998]
[1725234518712,0.43245,57544.0,57543.0,0.0008998]
[1725234519163,0.25867,57544.0,57543.0,0.0008998]
[1725234519391,0.43245,57544.0,57543.0,0.0008998]
[1725234519612,0.4844875,57544.0,57543.0,0.0008998]
[1725234519825,0.4814875,57544.0,57543.0,0.0008998]
[1725234520040,0.42945,57544.0,57543.0,0.0008998]
[1725234520271,0.43145,57544.0,57543.0,0.0008998]
[1725234520465,0.51075344,57544.0,57543.0,0.0008998]
[1725234520706,0.50875344,57544.0,57543.0,0.0008998]
[1725234521151,0.51175344,57544.0,57543.0,0.0008998]
[1725234521588,0.50875344,57544.0,57543.0,0.0008998]
[1725234521804,0.4834875,57544.0,57543.0,0.0008998]
[1725234523050,0.4814875,57544.0,57543.0,0.0008998]
[1725234523252,0.4844875,57544.0,57543.0,0.0008998]
[1725234523757,0.43245,57544.0,57543.0,0.0008998]
[1725234523971,0.42945,57544.0,57543.0,0.0008998]
[1725234524198,0.60523,57544.0,57543.0,0.0008998]
[1725234524429,0.43145,57544.0,57543.0,0.0008998]
[1725234524668,0.42945,57544.0,57543.0,0.0008998]
[1725234524893,0.43245,57544.0,57543.0,0.0008998]
[1725234525108,0.60623,57544.0,57543.0,0.0008998]
[1725234525576,0.43245,57544.0,57543.0,0.0008998]
[1725234526019,0.42945,57544.0,57543.0,0.0008998]
[1725234526240,0.50750625,57544.0,57543.0,0.0008998]
[1725234526471,0.68128625,57544.0,57543.0,0.0008998]
[1725234526708,0.68528625,57544.0,57543.0,0.0008998]
[1725234526928,0.79403689,57544.0,57543.0,0.0008998]
[1725234527169,0.81605565,57544.0,57543.0,0.0008998]
[1725234527397,1.47114602,57544.0,57543.0,0.0008998]
[1725234527719,1.36622202,57544.0,57543.0,0.0008998]
[1725234527881,1.35481909,57544.0,57543.0,0.0008998]
[1725234528122,1.38408817,57544.0,57543.0,0.0008998]
[1725234528776,1.3924911,57544.0,57543.0,0.0008998]
[1725234528999,1.43664577,57544.0,57543.0,0.0008998]
[1725234529245,1.61442577,57544.0,57543.0,0.0008998]
[1725234529741,1.61042577,57544.0,57543.0,0.0008998]
[1725234529977,1.61842577,57544.0,57543.0,0.0008998]
[1725234531415,1.61842577,57544.0,57532.0,0.0008998]
[1725234531416,0.95139134,57533.0,57532.0,0.0008998]
[1725234531653,1.65997579,57533.0,57532.0,0.0008998]
[1725234531900,0.8787,57533.0,57532.0,0.0008998]
[1725234532143,0.92897306,57533.0,57532.0,0.0008998]
[1725234532382,0.97353066,57533.0,57532.0,0.0008998]
[1725234533112,1.10342772,57533.0,57532.0,0.0008998]
[1725234533570,1.11042772,57533.0,57532.0,0.0008998]
[1725234534073,0.97853066,57533.0,57532.0,0.0008998]
[1725234534519,1.08242624,57533.0,57532.0,0.0008998]
[1725234534761,0.97853066,57533.0,57532.0,0.0008998]
[1725234535218,1.08439723,57533.0,57532.0,0.0008998]
[1725234535424,1.19007127,57533.0,57532.0,0.0008998]
[1725234536083,1.0862047,57533.0,57532.0,0.0008998]
[1725234536302,1.03714625,57533.0,57532.0,0.0008998]
[1725234536544,1.14099247,57533.0,57532.0,0.0008998]
[1725234537043,1.03714625,57533.0,57532.0,0.0008998]
[1725234537721,0.98053066,57533.0,57532.0,0.0008998]
[1725234539406,0.98053066,57533.0,57513.0,0.086936]
[1725234539407,0.005,57516.0,57508.0,0.1516]
[1725234539720,0.434727,57507.0,57506.0,0.1281]
[1725234539903,0.260841,57506.0,57504.0,0.008987]
[1725234540156,0.608629,57506.0,57504.0,0.008987]
[1725234541105,1.372157,57506.0,57504.0,0.008987]
[1725234541346,1.35871464,57506.0,57504.0,0.008987]
[1725234541585,1.38371464,57506.0,57504.0,0.008987]
[1725234542061,1.43358078,57506.0,57504.0,0.008987]
[1725234542300,0.882097,57506.0,57504.0,0.008987]
[1725234542538,0.884097,57506.0,57504.0,0.008987]
[1725234543269,0.889097,57506.0,57504.0,0.008987]
[1725234544918,0.434812,57496.0,57495.0,0.0008987]
[1725234545145,0.59704534,57496.0,57495.0,0.0008987]
[1725234545356,0.62896006,57496.0,57495.0,0.0008987]
[1725234545868,0.77597034,57496.0,57495.0,0.0008987]
[1725234546081,0.77597034,57496.0,57494.0,0.008987]
[1725234546082,0.615748,57495.0,57494.0,0.008987]
[1725234546310,1.44989537,57495.0,57494.0,0.008987]
[1725234546763,1.44989537,57495.0,57482.0,0.1518]
[1725234546764,0.778558,57475.0,57461.0,0.2739]
[1725234547001,1.95604934,57475.0,57462.0,0.50540786]
[1725234547227,1.95604934,57475.0,57461.0,0.2739]
[1725234547228,1.42710364,57475.0,57461.0,0.2739]
[1725234547455,0.186994,57475.0,57473.0,0.1518]
[1725234547678,0.186994,57475.0,57474.0,0.131098]
[1725234547679,0.1,57475.0,57474.0,0.131098]
[1725234547911,0.186994,57475.0,57474.0,0.131098]
[1725234548157,0.360982,57475.0,57474.0,0.131098]
[1725234548398,0.41330353,57475.0,57474.0,0.131098]
[1725234548892,0.360982,57475.0,57474.0,0.131098]
[1725234549340,0.369982,57475.0,57474.0,0.131098]
[1725234551120,0.360982,57475.0,57474.0,0.131098]
[1725234551356,0.370982,57475.0,57474.0,0.131098]
[1725234552000,0.01,57475.0,57474.0,0.131098]
[1725234552223,0.096994,57475.0,57474.0,0.290798]
[1725234552478,0.15458434,57475.0,57474.0,0.290798]
[1725234552711,0.2706814,57475.0,57474.0,0.290798]
[1725234553152,0.4446694,57475.0,57474.0,0.290798]
[1725234553436,0.2706814,57475.0,57474.0,0.290798]
[1725234554101,0.4446694,57475.0,57474.0,0.008998]
[1725234554334,0.67154834,57475.0,57474.0,0.008998]
[1725234554561,0.72060171,57475.0,57474.0,0.008998]
[1725234555705,0.71560171,57475.0,57474.0,0.008998]
[1725234556159,0.67154834,57475.0,57474.0,0.008998]
[1725234556622,0.76654834,57475.0,57474.0,0.008998]
[1725234557491,0.92878168,57475.0,57474.0,0.008998]
[1725234557714,0.93078168,57475.0,57474.0,0.008998]
[1725234557933,0.88289074,57475.0,57474.0,0.008998]
[1725234560174,1.04759074,57475.0,57474.0,0.008998]
[1725234560417,1.50760105,57475.0,57474.0,0.008998]
[1725234560649,1.05760471,57475.0,57474.0,0.008998]
[1725234560868,0.95160171,57475.0,57474.0,0.008998]
[1725234563265,0.95360171,57475.0,57474.0,0.008998]
[1725234563487,0.95360171,57475.0,57461.0,0.1295]
[1725234563488,0.43507,57462.0,57461.0,0.1295]
[1725234563725,0.59730334,57462.0,57461.0,0.1295]
[1725234563965,0.4351,57458.0,57457.0,0.1522]
[1725234564205,0.005,57463.0,57451.0,0.0004]
[1725234564206,0.087013,57463.0,57459.0,0.1522]
[1725234564471,0.087014,57462.0,57461.0,0.1522]
[1725234564709,0.42427534,57462.0,57461.0,0.1522]
[1725234565153,0.42327534,57462.0,57461.0,0.1522]
[1725234565381,0.24924734,57462.0,57461.0,0.1522]
[1725234567198,0.42427534,57462.0,57461.0,0.1522]
[1725234567412,0.31007697,57462.0,57461.0,0.1522]
[1725234567841,0.48410497,57462.0,57461.0,0.1522]
[1725234568276,0.261046,57461.0,57460.0,0.1276]
[1725234569622,0.16323334,57462.0,57460.0,0.1276]
[1725234569901,0.16223334,57462.0,57460.0,0.1276]
[1725234570319,0.20456007,57462.0,57460.0,0.1276]
[1725234571175,0.001,57461.0,57460.0,0.1276]
[1725234571391,0.001,57461.0,57460.0,0.717085]
[1725234571626,0.187002,57470.0,57449.0,0.01049998]
[1725234571856,0.187002,57470.0,57465.0,0.370509]
[1725234571857,0.2539454,57470.0,57465.0,0.370509]
[1725234572067,0.187002,57470.0,57465.0,0.370509]
[1725234572729,0.187002,57470.0,57465.0,0.369509]
[1725234572965,0.087005,57468.0,57465.0,0.2835]
[1725234573182,0.435037,57466.0,57465.0,0.2835]
[1725234573424,0.33118897,57466.0,57465.0,0.2835]
[1725234574654,0.33118897,57466.0,57455.0,0.087023]
[1725234574655,0.07016697,57466.0,57455.0,0.087023]
[1725234574899,0.24925034,57460.0,57455.0,0.087023]
[1725234576099,0.16223334,57460.0,57458.0,0.2684]
[1725234576844,0.087012,57463.0,57458.0,0.2684]
[1725234577088,0.08701,57465.0,57460.0,0.087016]
[1725234577343,0.274004,57470.0,57462.0,0.087013]
[1725234577344,0.087007,57467.0,57462.0,0.087013]
[1725234577609,0.087008,57466.0,57462.0,0.086013]
[1725234578063,0.087008,57466.0,57465.0,0.0008998]
[1725234578309,0.087008,57466.0,57460.0,0.088016]
[1725234578310,0.0001002,57465.0,57460.0,0.088016]
[1725234578773,0.13933253,57466.0,57460.0,0.087016]
[1725234579228,0.31434653,57466.0,57465.0,0.001]
[1725234579475,0.65059487,57466.0,57465.0,0.001]
[1725234579930,0.82460987,57466.0,57465.0,0.001]
[1725234580424,0.82460987,57466.0,57456.0,0.1198]
[1725234580425,0.174023,57464.0,57456.0,0.1198]
[1725234580676,0.261064,57457.0,57456.0,0.1198]
[1725234580916,0.261064,57457.0,57451.0,0.0004]
[1725234580917,0.087029,57452.0,57451.0,0.0004]
[1725234581139,0.261087,57452.0,57451.0,0.0004]
[1725234581378,0.087029,57452.0,57451.0,0.0004]
[1725234581641,0.087029,57452.0,57451.0,0.1238]
[1725234582351,0.087029,57452.0,57451.0,0.1268]
[1725234582352,0.436145,57452.0,57451.0,0.1268]
[1725234582584,0.436145,57452.0,57451.0,0.0034]
[1725234583318,0.536145,57452.0,57451.0,0.0034]
[1725234584108,0.535145,57452.0,57451.0,0.0004]
[1725234584371,0.62228803,57452.0,57451.0,0.0004]
[1725234584625,0.56345541,57452.0,57451.0,0.0034]
[1725234584860,0.38939741,57452.0,57451.0,0.0004]
[1725234585086,0.38839741,57452.0,57451.0,0.0004]
[1725234585340,0.38839741,57452.0,57451.0,0.0034]
[1725234585816,0.21433941,57452.0,57451.0,0.2906]
[1725234586067,0.21433941,57452.0,57451.0,0.37763]
[1725234586068,0.02731041,57452.0,57451.0,0.37763]
[1725234587269,0.02731041,57452.0,57451.0,0.2906]
[1725234587723,0.02731041,57452.0,57451.0,0.37763]
[1725234589109,0.1,57454.0,57451.0,0.37763]
[1725234589339,0.13492563,57454.0,57451.0,0.37763]
[1725234589589,0.1,57454.0,57451.0,0.37763]
[1725234590056,0.1,57454.0,57451.0,0.3785309]
[1725234590282,0.1,57454.0,57451.0,0.3755309]
[1725234590508,0.1,57454.0,57451.0,0.2885009]
[1725234590728,0.187026,57454.0,57451.0,0.2885009]
[1725234590953,0.261087,57452.0,57451.0,0.2885009]
[1725234591658,0.435145,57452.0,57451.0,0.2885009]
[1725234592108,0.261087,57452.0,57451.0,0.2905009]
[1725234594112,0.261087,57452.0,57451.0,0.1274009]
[1725234595254,0.261087,57452.0,57451.0,0.0033009]
[1725234595490,0.261087,57452.0,57420.0,0.2048]
[1725234595491,0.440295,57432.0,57420.0,0.2048]
[1725234595729,0.70802044,57432.0,57420.0,0.2048]
[1725234595963,1.1480012,57432.0,57422.0,0.2048]
[1725234596188,1.1581766,57432.0,57422.0,0.2048]
[1725234596417,1.1581731,57432.0,57422.0,0.2048]
[1725234596655,1.10274382,57432.0,57422.0,0.2048]
[1725234597099,1.05097539,57432.0,57422.0,0.2048]
[1725234597320,1.27779339,57432.0,57416.0,0.008998]
[1725234597969,1.27879339,57432.0,57416.0,0.008998]
[1725234598426,1.27779339,57432.0,57416.0,0.008998]
[1725234598664,1.28579339,57432.0,57416.0,0.008998]
[1725234599117,1.27779339,57432.0,57416.0,0.008998]
[1725234599374,1.28779339,57432.0,57416.0,0.008998]
[1725234599595,1.14134281,57432.0,57416.0,0.008998]
[1725234599799,1.01780381,57432.0,57416.0,0.008998]
[1725234600016,2.21576181,57432.0,57416.0,0.008998]
[1725234600233,2.18599481,57432.0,57416.0,0.008998]
[1725234600446,1.40816081,57432.0,57416.0,0.008998]
[1725234600683,1.05575029,57432.0,57416.0,0.09608]
[1725234600893,0.96510381,57432.0,57416.0,0.09608]
[1725234601360,0.96510381,57432.0,57428.0,0.1113]
[1725234601361,0.60186781,57432.0,57428.0,0.1113]
[1725234601603,0.60186781,57432.0,57430.0,0.0892]
[1725234601604,0.5457311,57432.0,57430.0,0.0892]
[1725234601828,0.3716131,57432.0,57430.0,0.0892]
[1725234602297,0.3716131,57432.0,57431.0,0.08746]
[1725234602298,0.2895541,57432.0,57431.0,0.08746]
[1725234602644,0.2895541,57432.0,57431.0,0.20046]
[1725234602645,0.02732076,57432.0,57431.0,0.20046]
[1725234602858,0.02732076,57432.0,57431.0,0.5496029]
[1725234603327,0.02732076,57432.0,57431.0,0.3754819]
[1725234603782,0.02732076,57432.0,57431.0,0.4671819]
[1725234604223,0.24928234,57439.0,57433.0,0.087057]
[1725234604503,0.24928234,57439.0,57431.0,0.3801219]
[1725234604504,0.16223334,57439.0,57431.0,0.3801199]
[1725234604729,0.24926734,57449.0,57433.0,0.0917]
[1725234604952,0.09633851,57448.0,57442.0,0.087042]
[1725234605177,0.09633851,57448.0,57443.0,0.1154]
[1725234605178,0.16223334,57445.0,57443.0,0.1154]
[1725234605868,0.087038,57446.0,57443.0,0.1154]
[1725234606327,0.16223334,57447.0,57443.0,0.1154]
[1725234606550,0.174063,57451.0,57443.0,0.1154]
[1725234606551,0.15749587,57451.0,57443.0,0.1154]
[1725234606788,0.24926934,57448.0,57443.0,0.1154]
[1725234607050,0.187037,57447.0,57443.0,0.1154]
[1725234607272,0.24927434,57444.0,57443.0,0.1154]
[1725234607504,0.087047,57440.0,57439.0,0.1092]
[1725234607746,0.24928034,57440.0,57439.0,0.1092]
[1725234609320,0.24928034,57440.0,57439.0,0.1102]
[1725234609985,0.187037,57447.0,57439.0,0.1102]
[1725234610220,0.1,57447.0,57442.0,0.087043]
[1725234610428,0.1,57447.0,57440.0,0.174094]
[1725234610649,0.0273119,57446.0,57444.0,0.2034]
[1725234611118,0.1,57447.0,57444.0,0.2034]
[1725234611556,0.03492673,57446.0,57444.0,0.2034]
[1725234611775,0.05639813,57446.0,57444.0,0.2034]
[1725234612426,0.087039,57445.0,57444.0,0.2034]
[1725234612859,0.31751613,57445.0,57444.0,0.2034]
[1725234613092,0.261141,57440.0,57439.0,0.2001]
[1725234613319,0.087047,57440.0,57439.0,0.2001]
[1725234613553,0.12938353,57440.0,57439.0,0.2001]
[1725234613795,0.11436115,57440.0,57439.0,0.2001]
[1725234615147,0.11436115,57440.0,57439.0,0.2031]
[1725234615577,0.02731415,57440.0,57439.0,0.2001]
[1725234615799,0.02731415,57440.0,57439.0,0.2021]
[1725234616468,0.02731415,57440.0,57439.0,0.289148]
[1725234616721,0.02731415,57440.0,57439.0,0.463245]
[1725234617617,0.02731415,57440.0,57439.0,0.637342]
[1725234617828,0.02731415,57440.0,57439.0,0.463245]
[1725234618324,0.02731415,57440.0,57439.0,0.461245]
[1725234618562,0.02731415,57440.0,57439.0,0.465245]
[1725234619416,0.02731415,57440.0,57439.0,0.461245]
[1725234619631,0.02731415,57440.0,57439.0,0.2041]
[1725234619884,0.11436115,57440.0,57439.0,0.2041]
[1725234620073,0.55944272,57440.0,57439.0,0.2001]
[1725234620307,0.38534872,57440.0,57439.0,0.2081]
[1725234620792,0.34028057,57440.0,57439.0,0.2081]
[1725234621029,0.34028057,57440.0,57439.0,0.008]
[1725234621287,0.46254915,57440.0,57439.0,0.008]
[1725234621526,0.261159,57436.0,57435.0,0.0901]
[1725234621756,0.30741572,57436.0,57435.0,0.0901]
[1725234621984,0.087053,57436.0,57435.0,0.0901]
[1725234622230,0.087051,57438.0,57435.0,0.0901]
[1725234622493,0.20140815,57440.0,57435.0,0.0901]
[1725234622750,0.087049,57439.0,57435.0,0.0901]
[1725234623010,0.02731415,57440.0,57435.0,0.0901]
[1725234623277,0.02731415,57440.0,57437.0,0.087051]
[1725234623841,0.02731415,57440.0,57438.0,0.08705]
[1725234624041,0.02731415,57440.0,57435.0,0.0901]
[1725234624292,0.187044,57442.0,57435.0,0.0901]
[1725234624523,0.087045,57441.0,57437.0,0.087051]
[1725234624762,0.087045,57441.0,57435.0,0.0961]
[1725234625001,0.1,57445.0,57437.0,0.087051]
[1725234625002,0.187044,57442.0,57437.0,0.087051]
[1725234625231,0.1,57445.0,57440.0,0.087046]
[1725234625232,0.18704,57445.0,57440.0,0.087046]
[1725234625727,0.000819,57446.0,57443.0,0.1048]
[1725234625961,0.000819,57446.0,57443.0,0.191842]
[1725234625962,0.02731224,57444.0,57443.0,0.191842]
[1725234626223,0.02731224,57444.0,57443.0,0.276742]
[1725234626734,0.02731224,57444.0,57443.0,0.450827]
[1725234627284,0.174049,57455.0,57440.0,0.001]
[1725234627285,0.05166624,57460.0,57444.0,0.1897]
[1725234627558,0.15668936,57465.0,57440.0,0.001]
[1725234627559,0.50540786,57459.0,57448.0,0.174068]
[1725234627779,0.000819,57465.0,57459.0,0.087018]
[1725234628003,0.087012,57464.0,57459.0,0.087018]
[1725234628463,0.087012,57464.0,57460.0,0.2004]